fUSD/lending_fUSD_20251115
["ID","MTS","AMOUNT","RATE_DAILY","PERIOD"]
[394059234,1763235966954,-150.0,0.00048144,30]
[394059235,1763235966980,-150.0,0.00048152,30]
[394059236,1763235967006,-150.0,0.00048202,30]
[394059237,1763235967033,-150.0,0.00048216,30]
[394059238,1763235967063,-199.0,0.00048219,30]
[394059239,1763235967091,-150.0,0.00048243,30]
[394059240,1763235967117,-150.0,0.00048259,30]
[394059241,1763235967148,-150.0,0.00048279,30]
[394059242,1763235967176,-150.0,0.00048317,30]
[394059243,1763235967204,-150.0,0.00048317,30]
[394059244,1763235967230,-418.0,0.00048329,90]
[394059245,1763235967256,-150.0,0.00048343,30]
[394059246,1763235967282,-150.0,0.00048375,30]
[394059247,1763235967308,-150.0,0.00048406,30]
[394059248,1763235967333,-150.0,0.00048433,30]
[394059249,1763235967359,-150.0,0.00048469,30]
[394059250,1763235967385,-215.55069301,0.00048483,30]
[394059251,1763235967411,-150.0,0.0004849,30]
[394059252,1763235967436,-150.0,0.0004849,30]
[394059253,1763235967617,-150.0,0.00048533,30]
[394059254,1763235967644,-150.0,0.00048548,30]
[394059255,1763235967671,-150.0,0.00048596,30]
[394059256,1763235967698,-290.94,0.000486,60]
[394059257,1763235967725,-150.0,0.00048606,30]
[394059258,1763235967751,-150.0,0.00048659,30]
[394059259,1763235967776,-150.0,0.00048664,30]
[394059260,1763235967803,-215.55069301,0.00048715,30]
[394059261,1763235967828,-150.0,0.00048721,30]
[394059262,1763235967853,-150.0,0.00048723,30]
[394059263,1763235967881,-500.0,0.00048767,120]
[394059264,1763235967909,-500.0,0.00048767,120]
[394059265,1763235967936,-289.34542816,0.00048767,120]
[394059266,1763235967962,-150.0,0.00048779,30]
[394059267,1763235967989,-215.55069301,0.00048783,30]
[394059268,1763235968017,-150.0,0.00048786,30]
[394059269,1763235968045,-150.0,0.00048837,30]
[394059270,1763235968072,-150.0,0.00048837,30]
[394059271,1763235968099,-150.0,0.00048837,30]
[394059272,1763235968130,-150.0,0.00048849,30]
[394059273,1763235968158,-150.0,0.00048894,30]
[394059274,1763235968185,-307.57007395,0.00048912,120]
[394059275,1763235968212,-150.0,0.00048913,30]
[394059276,1763235968241,-150.0,0.00048952,30]
[394059277,1763235968269,-150.0,0.00048976,30]
[394059278,1763235968296,-150.0,0.00048985,30]
[394059279,1763235968325,-150.0,0.0004901,30]
[394059280,1763235968351,-150.0,0.0004904,30]
[394059281,1763235968378,-150.0,0.00049068,30]
[394059282,1763235968406,-150.0,0.00049103,30]
[394059283,1763235968433,-215.55069301,0.00049105,30]
[394059284,1763235968461,-150.0,0.00049125,30]
[394059285,1763235968488,-150.0,0.00049166,30]
[394059286,1763235968516,-150.0,0.00049183,30]
[394059287,1763235968544,-150.0,0.0004923,30]
[394059288,1763235968571,-150.0,0.00049241,30]
[394059289,1763235968598,-150.0,0.00049293,30]
[394059290,1763235968625,-150.0,0.00049299,30]
[394059291,1763235968653,-500.0,0.00049315,33]
[394059292,1763235968680,-150.0,0.00049356,30]
[394059293,1763235968708,-150.0,0.00049356,30]
[394059294,1763235968738,-150.0,0.00049356,30]
[394059295,1763235968767,-150.0,0.00049356,30]
[394059296,1763235968795,-150.0,0.00049414,30]
[394059297,1763235968824,-150.0,0.0004942,30]
[394059298,1763235968853,-150.0,0.00049472,30]
[394059299,1763235968883,-918.96,0.00049479,120]
[394059300,1763235968911,-150.0,0.00049483,30]
[394059301,1763235968938,-215.55069301,0.00049512,30]
[394059302,1763235968965,-150.0,0.00049529,30]
[394059303,1763235968993,-150.0,0.00049546,30]
[394059304,1763235969021,-150.0,0.00049587,30]
[394059305,1763235969048,-199.0,0.00049589,30]
[394059306,1763235969075,-150.0,0.0004961,30]
[394059307,1763235969103,-150.0,0.00049645,30]
[394059308,1763235969133,-1000.0,0.00049647,30]
[394059309,1763235969161,-150.0,0.00049673,30]
[394059310,1763235969189,-150.0,0.00049703,30]
[394059311,1763235969218,-150.0,0.00049727,30]
[394059312,1763235969247,-150.0,0.00049736,30]
[394059313,1763235969273,-150.0,0.0004976,30]
[394059314,1763235969304,-150.0,0.000498,30]
[394059315,1763235969330,-150.0,0.00049818,30]
[394059316,1763235969356,-215.55069301,0.00049848,30]
[394059317,1763235969383,-150.0,0.00049863,30]
[394059318,1763235969409,-150.0,0.00049876,30]
[394059319,1763235969435,-150.0,0.00049876,30]
[394059320,1763235969461,-150.0,0.00049876,30]
[394059321,1763235969488,-215.55069301,0.00049893,30]
[394059322,1763235969514,-246.3701587,0.00049897,30]
[394059323,1763235969540,-400.0,0.00049916,120]
[394059324,1763235969570,-150.0,0.00049927,30]
[394059325,1763235969595,-1000.0,0.0004993,30]
[394059326,1763235969620,-150.0,0.00049934,30]
[394059327,1763235969646,-150.0,0.0004999,30]
[394059328,1763235969672,-150.0,0.00049991,30]
[394059329,1763235969699,-575.55,0.0005,120]
[394059330,1763235969725,-1000.0,0.00050036,30]
[394059331,1763235969752,-150.0,0.00050049,30]
[394059332,1763235969778,-150.0,0.00050053,30]
[394059333,1763235969804,-150.0,0.00050107,30]
[394059334,1763235969831,-150.0,0.00050117,30]
[394059335,1763235969858,-150.0,0.00050164,30]
[394059336,1763235969885,-215.55069301,0.00050177,30]
[394059337,1763235969913,-150.0,0.0005018,30]
[394059338,1763235969940,-150.0,0.00050215,30]
[394059339,1763235969967,-150.0,0.00050222,30]
[394059340,1763235969993,-150.0,0.00050222,30]
[394059341,1763235970020,-150.0,0.00050243,30]
[394059342,1763235970047,-1000.0,0.00050255,30]
[394059343,1763235970074,-150.0,0.0005028,30]
[394059344,1763235970100,-150.0,0.00050307,30]
[394059345,1763235970132,-533.96238442,0.0005031,60]
[394059346,1763235970160,-512.57331968,0.0005031,60]
[394059347,1763235970187,-150.0,0.00050338,30]
[394059348,1763235970214,-150.0,0.00050357,30]
[394059349,1763235970240,-150.0,0.0005037,30]
[394059350,1763235970267,-150.0,0.00050395,30]
[394059351,1763235970292,-150.0,0.00050395,30]
[394059352,1763235970318,-150.0,0.00050433,30]
[394059353,1763235970343,-150.0,0.00050453,30]
[394059354,1763235970370,-150.0,0.0005047,30]
[394059355,1763235970394,-150.0,0.00050491,30]
[394059356,1763235970420,-150.0,0.00050497,30]
[394059357,1763235970446,-150.0,0.00050511,30]
[394059358,1763235970472,-1000.0,0.00050523,30]
[394059359,1763235970498,-1000.0,0.00050557,30]
[394059360,1763235970523,-150.0,0.0005056,30]
[394059361,1763235970548,-150.0,0.00050569,30]
[394059362,1763235970575,-150.0,0.00050623,30]
[394059363,1763235970602,-150.0,0.00050626,30]
[394059364,1763235970628,-150.0,0.00050655,30]
[394059365,1763235970654,-215.55069301,0.00050683,30]
[394059366,1763235970681,-150.0,0.00050684,30]
[394059367,1763235970708,-150.0,0.00050687,30]
[394059368,1763235970734,-150.0,0.0005072,30]
[394059369,1763235970760,-150.0,0.00050742,30]
[394059370,1763235970787,-150.0,0.0005075,30]
[394059371,1763235970812,-215.55069301,0.00050785,30]
[394059372,1763235970840,-150.0,0.00050799,30]
[394059373,1763235970868,-1603.0,0.00050805,120]
[394059374,1763235970896,-770.307,0.00050805,120]
[394059375,1763235970926,-150.0,0.00050814,30]
[394059376,1763235970954,-150.0,0.00050857,30]
[394059377,1763235970981,-150.0,0.00050877,30]
[394059378,1763235971007,-150.0,0.00050915,30]
[394059379,1763235971036,-150.0,0.00050915,30]
[394059380,1763235971062,-150.0,0.00050915,30]
[394059381,1763235971089,-1000.0,0.00050927,30]
[394059382,1763235971115,-150.0,0.0005094,30]
[394059383,1763235971143,-365.19680321,0.0005095,120]
[394059384,1763235971316,-200.39365064,0.0005095,120]
[394059385,1763235971343,-826.6695989,0.0005095,120]
[394059386,1763235971371,-199.0,0.00050958,30]
[394059387,1763235971398,-150.0,0.00050973,30]
[394059388,1763235971424,-150.0,0.00051004,30]
[394059389,1763235971450,-150.0,0.0005103,30]
[394059390,1763235971484,-1000000.0,0.0005105,120]
[394059391,1763235971514,-1000000.0,0.0005105,120]
[394059392,1763235971545,-1000000.0,0.0005105,120]
[394059393,1763235971574,-700000.0,0.0005105,120]
[394059394,1763235971599,-150.0,0.00051054,30]
[394059395,1763235971625,-150.0,0.00051067,30]
[394059396,1763235971651,-150.0,0.00051088,30]
[394059397,1763235971677,-150.0,0.00051096,30]
[394059398,1763235971702,-150.0,0.0005113,30]
[394059399,1763235971728,-150.0,0.00051134,30]
[394059400,1763235971755,-150.0,0.00051146,30]
[394059401,1763235971782,-215.55069301,0.00051178,30]
[394059402,1763235971807,-150.0,0.00051194,30]
[394059403,1763235971834,-150.0,0.00051204,30]
[394059404,1763235971861,-150.0,0.00051212,30]
[394059405,1763235971888,-150.0,0.00051248,30]
[394059406,1763235971917,-150.0,0.00051257,30]
[394059407,1763235971946,-150.0,0.00051261,30]
[394059408,1763235971974,-1000.0,0.00051311,30]
[394059409,1763235972001,-150.0,0.00051319,30]
[394059410,1763235972028,-150.0,0.0005132,30]
[394059411,1763235972055,-1000.0,0.00051332,30]
[394059412,1763235972081,-418.0,0.00051349,120]
[394059413,1763235972107,-150.0,0.0005137,30]
[394059414,1763235972143,-150.0,0.00051377,30]
[394059415,1763235972171,-150.0,0.00051384,30]
[394059416,1763235972201,-150.0,0.000514,53]
[394059417,1763235972227,-216.0,0.000514,53]
[394059418,1763235972253,-1000.0,0.00051426,30]
[394059419,1763235972279,-150.0,0.00051434,30]
[394059420,1763235972306,-150.0,0.00051434,30]
[394059421,1763235972332,-150.0,0.00051447,30]
[394059422,1763235972358,-151.0,0.00051449,120]
[394059423,1763235972384,-200.0,0.00051486,30]
[394059424,1763235972411,-207.4,0.00051486,30]
[394059425,1763235972436,-215.0738,0.00051486,30]
[394059426,1763235972462,-223.0315306,0.00051486,30]
[394059427,1763235972488,-231.28369723,0.00051486,30]
[394059428,1763235972520,-239.84119403,0.00051486,30]
[394059429,1763235972545,-248.71531821,0.00051486,30]
[394059430,1763235972570,-257.91778498,0.00051486,30]
[394059431,1763235972595,-267.46074303,0.00051486,30]
[394059432,1763235972622,-277.35679052,0.00051486,30]
[394059433,1763235972647,-287.61899177,0.00051486,30]
[394059434,1763235972673,-298.26089446,0.00051486,30]
[394059435,1763235972699,-309.29654756,0.00051486,30]
[394059436,1763235972726,-320.74051982,0.00051486,30]
[394059437,1763235972752,-332.60791905,0.00051486,30]
[394059438,1763235972779,-344.91441206,0.00051486,30]
[394059439,1763235972805,-357.6762453,0.00051486,30]
[394059440,1763235972832,-370.91026638,0.00051486,30]
[394059441,1763235972860,-384.63394623,0.00051486,30]
[394059442,1763235972891,-398.86540225,0.00051486,30]
[394059443,1763235972918,-190.59572537,0.00051486,30]
[394059444,1763235972945,-151.0,0.00051487,30]
[394059445,1763235972972,-151.0,0.00051487,30]
[394059446,1763235972998,-151.0,0.00051487,30]
[394059447,1763235973025,-151.0,0.00051487,30]
[394059448,1763235973050,-166.0,0.00051487,30]
[394059449,1763235973075,-151.0,0.00051487,30]
[394059450,1763235973100,-166.0,0.00051487,30]
[394059451,1763235973129,-151.0,0.00051487,30]
[394059452,1763235973154,-166.0,0.00051487,30]
[394059453,1763235973181,-157.04495484,0.00051487,30]
[394059454,1763235973213,-151.0,0.00051487,30]
[394059455,1763235973247,-166.0,0.00051487,30]
[394059456,1763235973272,-151.0,0.00051487,30]
[394059457,1763235973299,-166.0,0.00051487,30]
[394059458,1763235973329,-151.0,0.00051487,30]
[394059459,1763235973356,-253.61607805,0.00051487,30]
[394059460,1763235973382,-156.73819158,0.00051487,30]
[394059461,1763235973409,-150.0,0.00051492,30]
[394059462,1763235973436,-150.0,0.00051499,120]
[394059463,1763235973461,-151.15059434,0.00051499,120]
[394059464,1763235973486,-500.0,0.00051499,120]
[394059465,1763235973514,-500.0,0.00051499,120]
[394059466,1763235973541,-500.0,0.00051499,120]
[394059467,1763235973567,-500.0,0.00051499,120]
[394059468,1763235973596,-500.0,0.00051499,120]
[394059469,1763235973623,-500.0,0.00051499,120]
[394059470,1763235973652,-500.0,0.00051499,120]
[394059471,1763235973679,-500.0,0.00051499,120]
[394059472,1763235973707,-500.0,0.00051499,120]
[394059473,1763235973735,-500.0,0.00051499,120]
[394059474,1763235973762,-500.0,0.00051499,120]
[394059475,1763235973788,-534.13603642,0.00051499,120]
[394059476,1763235973814,-200.0,0.00051499,120]
[394059477,1763235973841,-150.0,0.00051499,120]
[394059478,1763235973869,-200.0,0.00051499,120]
[394059479,1763235973897,-150.0,0.00051499,120]
[394059480,1763235973925,-150.0,0.00051499,120]
[394059481,1763235973953,-242.11771459,0.00051499,120]
[394059482,1763235973981,-200.0,0.00051499,120]
[394059483,1763235974007,-200.0,0.00051499,120]
[394059484,1763235974033,-150.0,0.00051499,120]
[394059485,1763235974060,-200.0,0.00051499,120]
[394059486,1763235974085,-150.0,0.00051499,120]
[394059487,1763235974111,-246.70336482,0.00051499,120]
[394059488,1763235974138,-200.0,0.00051499,120]
[394059489,1763235974163,-200.0,0.00051499,120]
[394059490,1763235974189,-150.0,0.00051499,120]
[394059491,1763235974216,-200.0,0.00051499,120]
[394059492,1763235974241,-200.0,0.00051499,120]
[394059493,1763235974267,-150.0,0.00051499,120]
[394059494,1763235974292,-150.0,0.00051499,120]
[394059495,1763235974317,-200.0,0.00051499,120]
[394059496,1763235974342,-200.0,0.00051499,120]
[394059497,1763235974366,-150.0,0.00051499,120]
[394059498,1763235974392,-215.13005854,0.00051499,120]
[394059499,1763235974417,-200.0,0.00051499,120]
[394059500,1763235974442,-200.0,0.00051499,120]
[394059501,1763235974467,-150.0,0.00051499,120]
[394059502,1763235974491,-155.02782084,0.00051499,120]
[394059503,1763235974516,-200.0,0.00051499,120]
[394059504,1763235974541,-200.0,0.00051499,120]
[394059505,1763235974567,-500.0,0.00051499,120]
[394059506,1763235974592,-500.0,0.00051499,120]
[394059507,1763235974622,-200.0,0.00051499,120]
[394059508,1763235974648,-383.1495843,0.00051499,120]
[394059509,1763235974676,-200.0,0.00051499,120]
[394059510,1763235974701,-249.38015306,0.00051499,120]
[394059511,1763235974727,-150.0,0.00051499,120]
[394059512,1763235974753,-150.37406736,0.00051499,120]
[394059513,1763235974780,-150.0,0.00051499,120]
[394059514,1763235974810,-150.0,0.00051499,120]
[394059515,1763235974995,-150.0,0.00051499,120]
[394059516,1763235975024,-150.0,0.00051499,120]
[394059517,1763235975050,-150.0,0.00051499,120]
[394059518,1763235975077,-151.47667617,0.00051499,120]
[394059519,1763235975103,-500.0,0.00051499,120]
[394059520,1763235975132,-500.0,0.00051499,120]
[394059521,1763235975158,-500.0,0.00051499,120]
[394059522,1763235975185,-500.0,0.00051499,120]
[394059523,1763235975213,-500.0,0.00051499,120]
[394059524,1763235975240,-211.37971289,0.00051499,120]
[394059525,1763235975267,-500.0,0.00051499,120]
[394059526,1763235975292,-500.0,0.00051499,120]
[394059527,1763235975320,-500.0,0.00051499,120]
[394059528,1763235975345,-500.0,0.00051499,120]
[394059529,1763235975372,-500.0,0.00051499,120]
[394059530,1763235975397,-500.0,0.00051499,120]
[394059531,1763235975423,-500.0,0.00051499,120]
[394059532,1763235975450,-500.0,0.00051499,120]
[394059533,1763235975476,-500.0,0.00051499,120]
[394059534,1763235975504,-500.0,0.00051499,120]
[394059535,1763235975529,-500.0,0.00051499,120]
[394059536,1763235975565,-500.0,0.00051499,120]
[394059537,1763235975591,-500.0,0.00051499,120]
[394059538,1763235975618,-500.0,0.00051499,120]
[394059539,1763235975645,-500.0,0.00051499,120]
[394059540,1763235975671,-500.0,0.00051499,120]
[394059541,1763235975697,-500.0,0.00051499,120]
[394059542,1763235975723,-500.0,0.00051499,120]
[394059543,1763235975748,-500.0,0.00051499,120]
[394059544,1763235975774,-485.09058876,0.00051499,120]
[394059545,1763235975800,-300.0,0.00051499,120]
[394059546,1763235975825,-311.1,0.00051499,120]
[394059547,1763235975851,-500.0,0.00051499,120]
[394059548,1763235975877,-500.0,0.00051499,120]
[394059549,1763235975904,-322.6107,0.00051499,120]
[394059550,1763235975931,-500.0,0.00051499,120]
[394059551,1763235975956,-334.5472959,0.00051499,120]
[394059552,1763235975982,-346.92554585,0.00051499,120]
[394059553,1763235976008,-150.45659999,0.00051499,120]
[394059554,1763235976034,-359.76179104,0.00051499,120]
[394059555,1763235976060,-373.07297731,0.00051499,120]
[394059556,1763235976086,-200.0,0.00051499,120]
[394059557,1763235976112,-150.0,0.00051499,120]
[394059558,1763235976142,-386.87667747,0.00051499,120]
[394059559,1763235976172,-150.0,0.00051499,120]
[394059560,1763235976201,-208.52920862,0.00051499,120]
[394059561,1763235976229,-200.0,0.00051499,120]
[394059562,1763235976257,-401.19111454,0.00051499,120]
[394059563,1763235976285,-200.0,0.00051499,120]
[394059564,1763235976312,-416.03518578,0.00051499,120]
[394059565,1763235976339,-151.89863775,0.00051499,120]
[394059566,1763235976366,-200.0,0.00051499,120]
[394059567,1763235976393,-431.42848765,0.00051499,120]
[394059568,1763235976420,-500.0,0.00051499,120]
[394059569,1763235976447,-500.0,0.00051499,120]
[394059570,1763235976476,-200.0,0.00051499,120]
[394059571,1763235976503,-500.0,0.00051499,120]
[394059572,1763235976531,-334.62644447,0.00051499,120]
[394059573,1763235976560,-200.0,0.00051499,120]
[394059574,1763235976587,-150.0,0.00051499,120]
[394059575,1763235976614,-290.73777035,0.00051499,120]
[394059576,1763235976643,-200.0,0.00051499,120]
[394059577,1763235976671,-200.0,0.00051499,120]
[394059578,1763235976712,-150.0,0.00051499,120]
[394059579,1763235976751,-150.0,0.00051499,120]
[394059580,1763235976785,-150.0,0.00051499,120]
[394059581,1763235976813,-200.0,0.00051499,120]
[394059582,1763235976842,-203.43582105,0.00051499,120]
[394059583,1763235976871,-200.0,0.00051499,120]
[394059584,1763235976899,-150.82616451,0.00051499,120]
[394059585,1763235976927,-200.0,0.00051499,120]
[394059586,1763235976954,-200.0,0.00051499,120]
[394059587,1763235976982,-500.0,0.00051499,120]
[394059588,1763235977010,-600.0,0.00051499,120]
[394059589,1763235977038,-200.0,0.00051499,120]
[394059590,1763235977065,-306.37088094,0.00051499,120]
[394059591,1763235977094,-165.71929386,0.00051499,60]
[394059592,1763235977127,-150.0,0.00051499,120]
[394059593,1763235977160,-151.0,0.00051499,120]
[394059594,1763235977191,-150.0,0.00051499,120]
[394059595,1763235977221,-150.0,0.00051499,120]
[394059596,1763235977251,-205.55807622,0.00051499,120]
[394059597,1763235977279,-156.587,0.00051499,120]
[394059598,1763235977307,-153.47564565,0.00051499,120]
[394059599,1763235977333,-162.380719,0.00051499,120]
[394059600,1763235977360,-168.3888056,0.00051499,120]
[394059601,1763235977389,-500.0,0.00051499,120]
[394059602,1763235977416,-500.0,0.00051499,120]
[394059603,1763235977443,-500.0,0.00051499,120]
[394059604,1763235977469,-174.61919141,0.00051499,120]
[394059605,1763235977496,-500.0,0.00051499,120]
[394059606,1763235977523,-500.0,0.00051499,120]
[394059607,1763235977550,-181.08010149,0.00051499,120]
[394059608,1763235977576,-562.26757316,0.00051499,120]
[394059609,1763235977604,-187.78006525,0.00051499,120]
[394059610,1763235977631,-150.0,0.00051499,120]
[394059611,1763235977657,-194.72792766,0.00051499,120]
[394059612,1763235977684,-201.93286099,0.00051499,120]
[394059613,1763235977711,-151.55835863,0.00051499,120]
[394059614,1763235977738,-209.40437684,0.00051499,120]
[394059615,1763235977765,-217.15233878,0.00051499,120]
[394059616,1763235977791,-225.18697532,0.00051499,120]
[394059617,1763235977819,-233.51889341,0.00051499,120]
[394059618,1763235977847,-242.15909246,0.00051499,120]
[394059619,1763235977873,-251.11897888,0.00051499,120]
[394059620,1763235977901,-260.4103811,0.00051499,120]
[394059621,1763235977930,-270.0455652,0.00051499,120]
[394059622,1763235977957,-280.03725112,0.00051499,120]
[394059623,1763235977984,-290.39862941,0.00051499,120]
[394059624,1763235978011,-301.1433787,0.00051499,120]
[394059625,1763235978037,-200.0,0.00051499,120]
[394059626,1763235978064,-207.4,0.00051499,120]
[394059627,1763235978091,-215.0738,0.00051499,120]
[394059628,1763235978118,-223.0315306,0.00051499,120]
[394059629,1763235978149,-231.28369723,0.00051499,120]
[394059630,1763235978174,-239.84119403,0.00051499,120]
[394059631,1763235978199,-248.71531821,0.00051499,120]
[394059632,1763235978225,-257.91778498,0.00051499,120]
[394059633,1763235978251,-267.46074303,0.00051499,120]
[394059634,1763235978277,-277.35679052,0.00051499,120]
[394059635,1763235978304,-287.61899177,0.00051499,120]
[394059636,1763235978329,-298.26089446,0.00051499,120]
[394059637,1763235978354,-309.29654756,0.00051499,120]
[394059638,1763235978380,-320.74051982,0.00051499,120]
[394059639,1763235978407,-154.95972371,0.00051499,120]
[394059640,1763235978433,-624.54954423,0.00051499,120]
[394059641,1763235978461,-220.0,0.00051499,120]
[394059642,1763235978489,-250.0,0.00051499,120]
[394059643,1763235978516,-151.0,0.00051499,120]
[394059644,1763235978543,-151.0,0.00051499,120]
[394059645,1763235978570,-220.0,0.00051499,120]
[394059646,1763235978743,-500.0,0.00051499,120]
[394059647,1763235978773,-250.0,0.00051499,120]
[394059648,1763235978800,-151.0,0.00051499,120]
[394059649,1763235978828,-151.0,0.00051499,120]
[394059650,1763235978855,-220.0,0.00051499,120]
[394059651,1763235978884,-500.0,0.00051499,120]
[394059652,1763235978912,-250.0,0.00051499,120]
[394059653,1763235978941,-151.0,0.00051499,120]
[394059654,1763235978969,-151.0,0.00051499,120]
[394059655,1763235978997,-500.0,0.00051499,120]
[394059656,1763235979025,-250.0,0.00051499,120]
[394059657,1763235979053,-151.0,0.00051499,120]
[394059658,1763235979080,-151.0,0.00051499,120]
[394059659,1763235979107,-151.0,0.00051499,120]
[394059660,1763235979139,-500.0,0.00051499,120]
[394059661,1763235979167,-250.0,0.00051499,120]
[394059662,1763235979193,-151.0,0.00051499,120]
[394059663,1763235979221,-151.0,0.00051499,120]
[394059664,1763235979248,-151.0,0.00051499,120]
[394059665,1763235979277,-500.0,0.00051499,120]
[394059666,1763235979303,-250.0,0.00051499,120]
[394059667,1763235979330,-151.0,0.00051499,120]
[394059668,1763235979356,-269.28207654,0.00051499,120]
[394059669,1763235979382,-500.0,0.00051499,120]
[394059670,1763235979409,-151.0,0.00051499,120]
[394059671,1763235979437,-500.0,0.00051499,120]
[394059672,1763235979465,-151.0,0.00051499,120]
[394059673,1763235979492,-250.0,0.00051499,120]
[394059674,1763235979519,-156.16431395,0.00051499,120]
[394059675,1763235979546,-160.0,0.00051499,120]
[394059676,1763235979574,-151.0,0.00051499,120]
[394059677,1763235979604,-500.0,0.00051499,120]
[394059678,1763235979631,-151.0,0.00051499,120]
[394059679,1763235979659,-250.0,0.00051499,120]
[394059680,1763235979686,-160.0,0.00051499,120]
[394059681,1763235979713,-151.0,0.00051499,120]
[394059682,1763235979741,-500.0,0.00051499,120]
[394059683,1763235979769,-151.0,0.00051499,120]
[394059684,1763235979797,-250.0,0.00051499,120]
[394059685,1763235979825,-160.0,0.00051499,120]
[394059686,1763235979854,-500.0,0.00051499,120]
[394059687,1763235979881,-151.0,0.00051499,120]
[394059688,1763235979908,-151.0,0.00051499,120]
[394059689,1763235979935,-250.0,0.00051499,120]
[394059690,1763235979961,-160.0,0.00051499,120]
[394059691,1763235979989,-500.0,0.00051499,120]
[394059692,1763235980015,-151.0,0.00051499,120]
[394059693,1763235980042,-151.0,0.00051499,120]
[394059694,1763235980076,-250.0,0.00051499,120]
[394059695,1763235980104,-160.0,0.00051499,120]
[394059696,1763235980134,-500.0,0.00051499,120]
[394059697,1763235980161,-151.0,0.00051499,120]
[394059698,1763235980189,-151.0,0.00051499,120]
[394059699,1763235980217,-160.0,0.00051499,120]
[394059700,1763235980244,-250.0,0.00051499,120]
[394059701,1763235980272,-500.0,0.00051499,120]
[394059702,1763235980297,-151.0,0.00051499,120]
[394059703,1763235980325,-151.0,0.00051499,120]
[394059704,1763235980351,-160.0,0.00051499,120]
[394059705,1763235980378,-250.0,0.00051499,120]
[394059706,1763235980405,-500.0,0.00051499,120]
[394059707,1763235980432,-151.0,0.00051499,120]
[394059708,1763235980459,-151.0,0.00051499,120]
[394059709,1763235980486,-250.0,0.00051499,120]
[394059710,1763235980513,-162.64043388,0.00051499,120]
[394059711,1763235980542,-500.0,0.00051499,120]
[394059712,1763235980570,-151.0,0.00051499,120]
[394059713,1763235980597,-151.0,0.00051499,120]
[394059714,1763235980624,-250.0,0.00051499,120]
[394059715,1763235980651,-151.0,0.00051499,120]
[394059716,1763235980678,-500.0,0.00051499,120]
[394059717,1763235980705,-151.0,0.00051499,120]
[394059718,1763235980731,-250.0,0.00051499,120]
[394059719,1763235980760,-250.0,0.00051499,120]
[394059720,1763235980787,-151.0,0.00051499,120]
[394059721,1763235980816,-500.0,0.00051499,120]
[394059722,1763235980843,-151.0,0.00051499,120]
[394059723,1763235980870,-250.0,0.00051499,120]
[394059724,1763235980898,-250.0,0.00051499,120]
[394059725,1763235980925,-151.0,0.00051499,120]
[394059726,1763235980953,-151.0,0.00051499,120]
[394059727,1763235980982,-250.0,0.00051499,120]
[394059728,1763235981010,-250.0,0.00051499,120]
[394059729,1763235981039,-500.0,0.00051499,120]
[394059730,1763235981066,-151.0,0.00051499,120]
[394059731,1763235981093,-236.16739823,0.00051499,120]
[394059732,1763235981121,-250.0,0.00051499,120]
[394059733,1763235981151,-250.0,0.00051499,120]